Cogmind - Beta 16 *** ADVENTURER MODE // 2026.01.03 @ 20:26:24 Player: Lukysa Result: Destroyed by P-70 Sage with High-powered Shock Rifle Performance ------------- Evolutions (5) 2500 Regions Visited (9) 1800 Robots Destroyed (143) 715 Value Destroyed (5702) 5702 Prototype IDs (20) 400 Alien Tech Used (0) 0 Bonus (3437) 3437 TOTAL SCORE: 14554 Bonus ------- High Alert Combat Kills 224 Follower Combat Kills 195 Registered with UFD 300 Met Optimus in HQ 500 Met Warlord at Base 500 MAIN.C Attacked Warlord 500 Warlord Defense Kills 1218 Cogmind --------- Core Integrity 0/1000 Matter 255/300 Energy 98/100 System Corruption 10% Temperature Warm (145) Movement Core (50) Location -4/Proximity Caves Parts ------- > --- POWER (2) -------- (None) > --- PROPULSION (4) --- (None) > --- UTILITY (7) ------ (None) > --- WEAPON (4) ------- (None) > --- INVENTORY (5) ---- Plasma Storm Peak State ------------ > --- POWER ------------ Neutrino Core Neutrino Core > --- PROPULSION ------- Armored Huge Wheel Armored Huge Wheel > --- UTILITY ---------- Advanced Heat Sink Advanced Cooling System Huge Storage Unit Advanced Sensor Array Experimental Signal Interpreter Energy Filter Improved Weapon Cycler > --- WEAPON ----------- Wave Gun Variable Charge Gun Variable Charge Gun Cooled Plasma Cannon > --- INVENTORY -------- Improved Deuterium Engine Fission Core Fission Core Fission Core Power Amplifier Advanced Heat Sink Enhanced Optical Array Advanced Sensor Array Weapon Mount Energy Filter Weapon Cycler Improved Medium Armor Plating Graphene Brace Advanced Shield Generator Advanced Shield Generator Improved Hacking Suite Variable Charge Gun Variable Charge Gun Variable Charge Gun Variable Charge Gun Improved Proton Missile Launcher Improved Proton Missile Launcher Heavy Rocket Launcher Heavy Flail DRS Beacon [Rating: 99] Favorites ----------- Power Fission Core Engine Improved Deuterium Engine Power Core Fission Core Reactor Cold Fusion Reactor Propulsion Wheel Treads Improved Medium Treads Wheel Wheel Utility Advanced Heat Sink Device Advanced Heat Sink Storage Huge Storage Unit Processor Experimental Signal Interpreter Protection Medium Reactive Plating Weapon Variable Charge Gun Energy Gun Variable Charge Gun Energy Cannon Heavy Phase Cannon Ballistic Gun Assault Rifle Ballistic Cannon Flak Cannon Launcher Heavy Rocket Launcher Special Weapon Enhanced Flamer Build | -11 -10 -10 -9 -6 -5 -5 -5 -5 -4 ------- Run | Yrd Mat Sub Scr Fac Fac Upp Upp War Pro Slots Evolved 10 | . . . . 8 2 . . . . Power 1 | . . . . 1 . . . . . Propulsion 2 | . . . . 1 1 . . . . Utility 5 | . . . . 4 1 . . . . Weapon 2 | . . . . 2 . . . . . Parts Attached 140 | 7 7 . 11 40 46 4 5 11 9 Power 18 | 1 1 . 2 4 7 1 . 1 1 Engine 6 | 1 1 . 2 . 1 1 . . . Core 10 | . . . . 2 6 . . 1 1 Reactor 2 | . . . . 2 . . . . . Propulsion 30 | 2 3 . 1 11 12 1 . . . Treads 1 | . . . 1 . . . . . . Leg . | . . . . . . . . . . Wheel 29 | 2 3 . . 11 12 1 . . . Hover . | . . . . . . . . . . Flight . | . . . . . . . . . . Utility 45 | 2 2 . 2 13 14 . 5 3 4 Device 31 | 1 . . . 10 12 . 3 2 3 Storage 6 | 1 1 . 1 . 2 . 1 . . Processor 3 | . 1 . . 2 . . . . . Hackware . | . . . . . . . . . . Protection 5 | . . . 1 1 . . 1 1 1 Artifact . | . . . . . . . . . . Weapon 47 | 2 1 . 6 12 13 2 . 7 4 Energy Gun 31 | 1 1 . 6 8 6 2 . 5 2 Energy Cannon 9 | . . . . 3 6 . . . . Ballistic Gun 1 | 1 . . . . . . . . . Ballistic Cannon 1 | . . . . 1 . . . . . Launcher 3 | . . . . . 1 . . . 2 Special Weapon 2 | . . . . . . . . 2 . Impact Weapon . | . . . . . . . . . . Slashing Weapon . | . . . . . . . . . . Piercing Weapon . | . . . . . . . . . . Special Melee Weapon . | . . . . . . . . . . Unidentified Prototypes 6 | . . . . 3 1 . . 2 . Corrupted Parts 2 | . . . . . 2 . . . . System Corruption 4 | . . . . . 4 . . . . Parts Lost 33 | . 2 . . 12 7 . . 4 8 Power 3 | . 1 . . 1 . . . . 1 Propulsion 12 | . 1 . . 5 5 . . 1 . Utility 6 | . . . . 2 1 . . 1 2 Weapon 12 | . . . . 4 1 . . 2 5 Highest Loss Streak 6 | . 2 . . 4 2 . . 4 6 To Critical Strikes 1 | . . . . . . . . 1 . Average Backups 15 | 1 7 10 12 12 18 24 23 19 13 Power 2 | . 2 2 1 2 3 4 4 3 2 Propulsion . | . 1 2 1 . . . . . . Utility 6 | . 1 3 3 3 8 11 10 7 6 Weapon 5 | . 2 3 6 5 5 8 8 8 4 Tool/Special . | . . . . . . . . . . Unused Backups 28 | . . . 5 7 5 . 1 3 7 Power 5 | . . . 2 1 1 . . . 1 Propulsion 1 | . . . 1 . . . . . . Utility 10 | . . . 1 1 2 . 1 1 4 Weapon 12 | . . . 1 5 2 . . 2 2 Tool/Special . | . . . . . . . . . . Average Slot Usage (%) 85 | . 97 100 99 98 93 89 88 87 69 Engine 2 | . 13 14 14 2 . . . . . Core 8 | . . . . 3 9 11 11 11 10 Wheel 11 | . 27 28 21 18 17 12 11 10 . Device 22 | . 8 . . 22 23 29 28 29 28 Storage 7 | . 14 14 14 6 8 5 5 5 4 Processor 3 | . 5 14 3 8 6 5 4 . . Protection 2 | . . . 10 . . . . 4 . Energy Gun 20 | . 23 28 27 17 7 21 23 22 22 Energy Cannon 3 | . . . . 7 14 1 . . . Peak Build Rating 99 | 9 9 8 24 63 92 99 99 98 84 Average Rating 65 | 6 8 8 18 52 80 96 97 94 69 On Entrance 45 | . 9 8 8 19 60 92 99 93 68 Avg Prop Armor Cover (%) 7 | . . . 9 . . . 4 4 . Naked Turns 10 | . . . . . . . . . 10 Heaviest Build 150 | 14 18 17 56 70 147 136 146 150 150 Greatest Support 56 | 32 32 20 20 30 48 56 56 56 28 Greatest Overweight (x) 48 | . . . 5 6 7 2 5 5 48 Average Overweight (x) 3 | . . . 2 1 2 2 2 2 38 Largest Inventory Capacity 25 | 8 10 10 15 15 25 25 25 25 25 Average Capacity 21 | 6 9 10 13 15 20 25 25 25 24 Most Carried 25 | 4 10 10 15 15 25 25 25 25 24 Average Carried 18 | 1 7 10 13 13 19 24 24 24 18 Final Capacity 25 | 8 10 10 15 15 25 25 25 25 5 Final Carried 25 | 4 10 10 15 15 25 25 22 25 5 Class Distribution -------------------- 38% | Scavenger-Gunner 24% | Scavenger-Skirmisher 16% | Mutant 10% | Skirmisher 4% | Commander-Gunner 3% | Scavenger-Mutant Dominant Class ---------------- Mutant | -10/Materials Mutant | -10/Subcaves Mutant | -9/Scraptown Scavenger-Skirmisher | -6/Factory Scavenger-Skirmisher | -5/Factory Skirmisher | -5/Upper Caves Skirmisher | -5/Upper Caves Commander-Gunner | -5/Warlord Scavenger-Gunner | -4/Proximity Caves Resources | -11 -10 -10 -9 -6 -5 -5 -5 -5 -4 ----------- Run | Yrd Mat Sub Scr Fac Fac Upp Upp War Pro Matter Collected 2215 | 282 156 . 85 483 727 110 151 156 65 Remotely . | . . . . . . . . . . Salvage Created 7322 | 97 508 . . 2636 2671 120 370 620 300 Parts 323 | 9 38 . . 96 133 . 11 28 8 Haulers Intercepted 3 | . 1 . . 2 . . . . . Recyclers Shooed 7 | 1 . . . 4 2 . . . . Parts Field Recycled . | . . . . . . . . . . Retrieved Matter . | . . . . . . . . . . Parts Self-Destructed 20 | . . . . . . . 12 . 8 Prevented . | . . . . . . . . . . Parts Restored . | . . . . . . . . . . Kills | -11 -10 -10 -9 -6 -5 -5 -5 -5 -4 ------- Run | Yrd Mat Sub Scr Fac Fac Upp Upp War Pro Combat Hostiles Destroyed 98 | . 10 . . 28 38 . 8 11 3 Guns 47 | . 10 . . 14 7 . 7 8 1 Cannons 37 | . . . . 10 27 . . . . AOE 1 | . . . . . 1 . . . . Classes Destroyed 20 | 2 4 . . 7 2 . . 3 2 Worker 9 | . 1 . . 7 1 . . . . Builder 14 | . 3 . . 7 4 . . . . Tunneler 3 | 1 . . . 1 1 . . . . Hauler 3 | . 1 . . 2 . . . . . Recycler 8 | 1 . . . 6 1 . . . . Minesweeper 1 | . . . . . . . . . 1 Mechanic 2 | . . . . . 2 . . . . Watcher 5 | . . . . 2 3 . . . . Swarmer 12 | . . . . 6 2 . 4 . . Saboteur 2 | . . . . . . . . 2 . Grunt 46 | . 10 . . 11 18 . 1 6 . Brawler 1 | . . . . . 1 . . . . Sentry 5 | . . . . 2 2 . 1 . . Demolisher 1 | . . . . . . . . 1 . Specialist 6 | . . . . 1 2 . 2 1 . Hunter 8 | . . . . 2 4 . . . 2 Programmer 12 | . . . . 4 8 . . . . Heavy 3 | . . . . 2 1 . . . . Behemoth 1 | . . . . . . . . . 1 Striker 1 | . . . . . . . . 1 . Packrat 1 | . . . . . . 1 . . . Best Kill Streak 14 | 2 4 . . 13 14 . 3 10 3 Combat Bots Only 10 | . 4 . . 8 10 . 3 10 3 Max Kills in Single Turn 3 | 1 1 . . 2 2 1 1 3 1 Gunslinging 2 | . . . . . . . . 2 . Exploded 1 | . . . . . 1 . . . . Melee . | . . . . . . . . . . Uniques/NPCs Destroyed . | . . . . . . . . . . Combat | -11 -10 -10 -9 -6 -5 -5 -5 -5 -4 -------- Run | Yrd Mat Sub Scr Fac Fac Upp Upp War Pro Hostile Shots Fired 555 | . 54 . . 189 146 . 27 50 89 Missed 153 | . 11 . . 57 48 . 7 10 20 Hits 402 | . 43 . . 132 98 . 20 40 69 Projectile 402 | . 43 . . 132 98 . 20 40 69 AOE 11 | . . . . 1 . . . 10 . Critical Strikes 16 | . . . . 5 5 . . 2 4 Actively Blocked 2 | . . . . . 2 . . . . Part Disruptions 5 | . . . . 2 . . 2 . 1 Damage Taken 6419 | . 360 . . 1752 1851 . 283 1087 1086 Core 1345 | . 58 . . 283 486 . 14 254 250 Absorbed by Shields 49 | . . . . . . . . . 49 Ignored by Resistances 1684 | . 113 . . 492 424 . 79 259 317 Regen/Repaired (Parts) 228 | . . . . . 76 . . 152 . Core Remaining (%) 80 | 100 . . 76 66 . . . . . Volleys Fired 251 | 4 49 . . 70 78 2 19 13 16 Largest 4 | 2 2 . . 4 4 4 4 4 4 Hottest 900 | 60 80 . . 325 636 300 600 900 900 Shots Fired 819 | 8 97 . . 255 295 9 59 51 45 Gun 513 | 8 97 . . 157 88 8 59 51 45 Cannon 304 | . . . . 98 205 1 . . . Launcher 2 | . . . . . 2 . . . . Special . | . . . . . . . . . . Kinetic 27 | 4 22 . . 1 . . . . . Thermal 747 | 4 75 . . 241 263 9 59 51 45 Explosive 2 | . . . . . 2 . . . . Electromagnetic 43 | . . . . 13 30 . . . . Robot Hit Streak 65 | 7 24 . . 65 14 14 26 23 21 Robot Miss Streak 4 | . 2 . . 4 3 . 3 2 1 Penetration Max . | . . . . . . . . . . Secondary Targets 10 | . 3 . . . . . 2 5 . Max Gunslinging Chain 2 | . 1 . . . . . 1 2 . Shots Hit Robots 566 | 7 78 . . 176 177 5 41 44 38 Core Hits 347 | 3 26 . . 193 90 3 12 15 5 Critical Kills 1 | . . . . . 1 . . . . Critical Parts Destroyed . | . . . . . . . . . . Critical Strikes 10 | . . . . 7 3 . . . . Burn 8 | . . . . 7 1 . . . . Meltdown 1 | . . . . . 1 . . . . Corrupt 1 | . . . . . 1 . . . . Melee Attacks . | . . . . . . . . . . Impact . | . . . . . . . . . . Slashing . | . . . . . . . . . . Piercing . | . . . . . . . . . . Sneak Attacks . | . . . . . . . . . . Combat Hostiles . | . . . . . . . . . . Follow-up Attacks . | . . . . . . . . . . Damage Inflicted 16030 | 86 884 . . 5160 5933 130 966 1303 1568 Guns 9612 | 86 884 . . 3222 1453 130 966 1303 1568 Cannons 5444 | . . . . 1492 3952 . . . . Explosions 961 | . . . . 433 528 . . . . Melee . | . . . . . . . . . . Ramming 13 | . . . . 13 . . . . . Kinetic 298 | 40 219 . . 39 . . . . . Thermal 13821 | 46 665 . . 4476 4667 130 966 1303 1568 Explosive 407 | . . . . . 407 . . . . Electromagnetic 1491 | . . . . 632 859 . . . . Impact . | . . . . . . . . . . Slashing . | . . . . . . . . . . Piercing . | . . . . . . . . . . Highest Corruption 10 | . . . . 5 9 9 9 9 10 Average Corruption 7 | . . . . 4 6 9 9 9 5 Corruption Purged . | . . . . . . . . . . Corruption Blocked . | . . . . . . . . . . Effects 139 | . . . . 12 56 24 41 5 1 Message Errors 37 | . . . . 3 13 5 14 2 . Matter Fused 31 | . . . . 1 12 7 11 . . Heat Flow Errors 17 | . . . . . 7 5 3 1 1 Energy Discharges 15 | . . . . 1 6 2 5 1 . Parts Rejected 2 | . . . . 1 1 . . . . Parts Fused 1 | . . . . . . . 1 . . Data Loss (minor) 16 | . . . . 3 6 3 3 1 . Data Loss (major) 5 | . . . . . 4 1 . . . Misfires 4 | . . . . . 2 1 1 . . Alerts 5 | . . . . . 3 . 2 . . Weapon Failures 6 | . . . . 3 2 . 1 . . Overload Shots 48 | . . . . . 3 . 2 16 27 Effects 3 | . . . . . . . . 2 1 Heat Surge 1 | . . . . . . . . 1 . Short Circuit 2 | . . . . . . . . 1 1 Overflow Damage 145 | . . . . 10 135 . . . . Projectiles 140 | . . . . 5 135 . . . . Explosions 5 | . . . . 5 . . . . . Melee . | . . . . . . . . . . Knockbacks 1 | . . . . 1 . . . . . Impact 1 | . . . . 1 . . . . . Kinetic . | . . . . . . . . . . Secondary . | . . . . . . . . . . Self-Inflicted Damage 111 | . . . . 47 64 . . . . Shots 3 | . . . . 2 1 . . . . Rammed 1 | . . . . 1 . . . . . Targets Rammed 1 | . . . . 1 . . . . . Kicked . | . . . . . . . . . . Crushed . | . . . . . . . . . . Highest Temperature 861 | . 262 . . 395 663 214 531 861 594 Average Temperature 142 | . 69 . . 123 161 77 176 172 216 Received Heat Transfer 1386 | . 258 . . 450 414 . 45 192 27 Effects 35 | . 2 . . . 15 . 10 3 5 Shutdowns 17 | . . . . . 10 . 3 2 2 Energy Bleed 3 | . 2 . . . 1 . . . . Interference 5 | . . . . . 1 . 4 . . Short Circuit 3 | . . . . . . . 1 . 2 Damage (minor) 2 | . . . . . 1 . . . 1 Damage (major) 2 | . . . . . . . 2 . . Damage (core) 3 | . . . . . 2 . . 1 . Siege Activations . | . . . . . . . . . . Martial Activations . | . . . . . . . . . . Shielding Activations . | . . . . . . . . . . Robots Disrupted 4 | . . . . 4 . . . . . Combat Hostiles 3 | . . . . 3 . . . . . Robots Corrupted 2 | . . . . 2 . . . . . Combat Hostiles 1 | . . . . 1 . . . . . Parts Fried 8 | . . . . 5 3 . . . . Impact Corruptions . | . . . . . . . . . . Robots Melted 12 | . . . . 3 3 . 1 3 2 Combat Hostiles 12 | . . . . 3 3 . 1 3 2 Parts Melted 70 | . 1 . . 30 20 . 4 7 8 Heat Transferred 21145 | 100 1500 . . 8016 6521 185 1469 1797 1557 Parts Sabotaged . | . . . . . . . . . . Parts Stolen . | . . . . . . . . . . Parts Stripped . | . . . . . . . . . . Power Chain Reactions 1 | . . . . . 1 . . . . Alert | -11 -10 -10 -9 -6 -5 -5 -5 -5 -4 ------- Run | Yrd Mat Sub Scr Fac Fac Upp Upp War Pro Maximum Alert Level 2 | . . . . 2 2 . . . . Low Security (%) 45 | 100 100 . . 52 30 . . . . Level 1 37 | . . . . 17 54 . . . . Level 2 17 | . . . . 30 14 . . . . Level 3 . | . . . . . . . . . . Level 4 . | . . . . . . . . . . Level 5 . | . . . . . . . . . . High Security . | . . . . . . . . . . Max Security . | . . . . . . . . . . Peak Influence 507 | 5 135 . . 507 494 . . . . Initial 205 | . . . . . 205 . . . . Average 225 | 1 33 . . 204 274 . . . . Influence Increases 3202 | 10 279 . . 1035 1268 5 160 360 85 Destroy 0b10 Robot/C 2060 | . 200 . . 560 760 . 160 320 60 Destroy 0b10 Robot/NC 230 | 10 25 . . 125 60 5 . . 5 Destroy Leader 366 | . 32 . . 138 176 . . . 20 Allied During Kill 40 | . . . . . . . . 40 . Successful Hack 53 | . 7 . . . 46 . . . . Disable Machine 117 | . . . . 90 27 . . . . Destroy Structure 201 | . . . . 17 184 . . . . Partial Spotted 15 | . . . . 15 . . . . . Lose Combat Pursuer 120 | . 15 . . 90 15 . . . . Influence Decreases 3202 | 10 274 5 . 548 1692 68 160 140 305 Entered New Map 534 | . . 3 . . 282 29 . . 220 Time Decay 2066 | 10 132 2 . 428 1190 39 160 40 65 Lost Part 270 | . 20 . . 120 70 . . 40 20 Lost Ally 60 | . . . . . . . . 60 . Purge Threat 272 | . 122 . . . 150 . . . . Squads Dispatched 21 | . 3 . . 7 11 . . . . Investigation 8 | . 3 . . 2 3 . . . . Extermination 5 | . . . . 1 4 . . . . Reinforcement 5 | . . . . 3 2 . . . . Assault . | . . . . . . . . . . Garrison 3 | . . . . 1 2 . . . . Intercept . | . . . . . . . . . . Searches Triggered . | . . . . . . . . . . Construction Impeded 1 | . . . . 1 . . . . . Haulers Reinforced . | . . . . . . . . . . Active Scanning Responses . | . . . . . . . . . . Cargo Convoy Interrupts 1 | . . . . 1 . . . . . Stealth | -11 -10 -10 -9 -6 -5 -5 -5 -5 -4 --------- Run | Yrd Mat Sub Scr Fac Fac Upp Upp War Pro Distress Signals 3 | . 1 . . . . . . 2 . Communications Jammed . | . . . . . . . . . . Distress Signals . | . . . . . . . . . . Times Spotted 141 | . 14 . . 42 45 . 8 27 5 Peak Tracking Total 12 | . 5 . . 8 5 . 3 12 2 Tactical Retreats 6 | . 1 . . 4 1 . . . . Traps | -11 -10 -10 -9 -6 -5 -5 -5 -5 -4 ------- Run | Yrd Mat Sub Scr Fac Fac Upp Upp War Pro Traps Triggered 7 | . . . . . 7 . . . . Indirectly . | . . . . . . . . . . Trap Hack Attempts . | . . . . . . . . . . Triggered . | . . . . . . . . . . Disarmed . | . . . . . . . . . . Reprogrammed . | . . . . . . . . . . Reused . | . . . . . . . . . . Traps Extracted . | . . . . . . . . . . Installed . | . . . . . . . . . . Triggered . | . . . . . . . . . . Machines | -11 -10 -10 -9 -6 -5 -5 -5 -5 -4 ---------- Run | Yrd Mat Sub Scr Fac Fac Upp Upp War Pro Machines Disabled 14 | . . . . 10 3 . 1 . . Max in Single Turn 6 | . . . . 6 1 . 1 . . Garrison Access 1 | . . . . . 1 . . . . Machines Repaired . | . . . . . . . . . . Machines Dismantled . | . . . . . . . . . . Machines Sabotaged . | . . . . . . . . . . Overloaded Fab Kills . | . . . . . . . . . . Hacking | -11 -10 -10 -9 -6 -5 -5 -5 -5 -4 --------- Run | Yrd Mat Sub Scr Fac Fac Upp Upp War Pro Machines Accessed 36 | . 4 . 4 7 15 1 . 5 . Terminals 14 | . 3 . . 3 8 . . . . Fabricators 3 | . . . . 2 1 . . . . Repair Stations 3 | . . . . 1 2 . . . . Recycling Units 3 | . 1 . . . 2 . . . . Scanalyzers 2 | . . . . 1 1 . . . . Garrison Access 1 | . . . . . 1 . . . . Total Hacks 84 | . 12 . 8 16 34 1 . 13 . Successful 50 | . 5 . 8 9 14 1 . 13 . Failed 34 | . 7 . . 7 20 . . . . Catastrophic 7 | . 2 . . 1 4 . . . . Database Lockouts . | . . . . . . . . . . Manual 15 | . 2 . . 1 11 . 1 . . Terminals 37 | . 11 . . 8 18 . . . . Fabricators 5 | . . . . 2 3 . . . . Repair Stations 6 | . . . . 1 5 . . . . Recycling Units 4 | . 1 . . . 3 . . . . Scanalyzers 7 | . . . . 5 2 . . . . Garrison Access 3 | . . . . . 3 . . . . Terminal Hacks 34 | . 4 . 8 2 6 1 . 13 . Record 12 | . 1 . 3 . 2 . . 6 . Robot Analysis 5 | . . . 5 . . . . . . Prototype ID Bank 5 | . . . . . . . . 5 . Open Door 3 | . . . . . . 1 . 2 . Branch Access Points 1 | . . . . . 1 . . . . Scanalyzer Index 1 | . 1 . . . . . . . . Alert Level 3 | . . . . 2 1 . . . . Unreport Threat 2 | . 1 . . . 1 . . . . Locate Traps 1 | . . . . . 1 . . . . Assault Status 1 | . 1 . . . . . . . . Fabricator Hacks 3 | . . . . 2 1 . . . . Network Status 2 | . . . . 2 . . . . . Build 1 | . . . . . 1 . . . . Repair Station Hacks 3 | . . . . . 3 . . . . Scan Component 2 | . . . . . 2 . . . . Repair 1 | . . . . . 1 . . . . Recycling Unit Hacks 3 | . 1 . . . 2 . . . . Report Inventory 3 | . 1 . . . 2 . . . . Scanalyzer 6 | . . . . 5 1 . . . . Retrieve Study 6 | . . . . 5 1 . . . . Garrison Access Hacks 1 | . . . . . 1 . . . . Seal Access 1 | . . . . . 1 . . . . Unauthorized Hacks . | . . . . . . . . . . Terminals . | . . . . . . . . . . Fabricators . | . . . . . . . . . . Repair Stations . | . . . . . . . . . . Recycling Units . | . . . . . . . . . . Scanalyzers . | . . . . . . . . . . Garrison Access . | . . . . . . . . . . Data Cores Recovered . | . . . . . . . . . . Used . | . . . . . . . . . . Hacking Detections 21 | . 3 . . 6 12 . . . . Full Trace Events 8 | . 3 . . 2 3 . . . . Feedback Events 1 | . . . . . 1 . . . . Corruption 1 | . . . . . 1 . . . . Feedback Blocked . | . . . . . . . . . . Robot Schematics Acquired . | . . . . . . . . . . Robots Built . | . . . . . . . . . . Authchips . | . . . . . . . . . . Time . | . . . . . . . . . . Total Robot Build Rating . | . . . . . . . . . . Part Schematics Acquired . | . . . . . . . . . . Parts Built 2 | . . . . . 2 . . . . Authchips . | . . . . . . . . . . Time 69 | . . . . . 69 . . . . Total Part Build Rating 18 | . . . . . 18 . . . . Part Studies Acquired 6 | . . . . 5 1 . . . . Parts Repaired 1 | . . . . . 1 . . . . Time 61 | . . . . . 61 . . . . Parts Recycled . | . . . . . . . . . . Recycled Matter . | . . . . . . . . . . Retrieved Matter . | . . . . . . . . . . Retrieved Components . | . . . . . . . . . . Parts Scanalyzed . | . . . . . . . . . . Part Schematics Acquired . | . . . . . . . . . . Parts Damaged . | . . . . . . . . . . Bothacking | -11 -10 -10 -9 -6 -5 -5 -5 -5 -4 ------------ Run | Yrd Mat Sub Scr Fac Fac Upp Upp War Pro Used RIF Installer . | . . . . . . . . . . Robots Hacked . | . . . . . . . . . . Non-combat . | . . . . . . . . . . Combat . | . . . . . . . . . . Robot Hacks Applied . | . . . . . . . . . . Relay Couplers Released . | . . . . . . . . . . Fabnet Peak Effective % . | . . . . . . . . . . Robots Rewired 5 | . . . . . . . . 5 . Allies Hacked . | . . . . . . . . . . Hacks Repelled . | . . . . . . . . . . Allies | -11 -10 -10 -9 -6 -5 -5 -5 -5 -4 -------- Run | Yrd Mat Sub Scr Fac Fac Upp Upp War Pro Total Allies 5 | . . . . . . . . 5 . Largest Group 5 | . . . . . . . . 5 . Highest-Rated Group 237 | . . . . . . . . 237 . Highest-Rated Ally 49 | . . . . . . . . 49 . Total Orders . | . . . . . . . . . . Ally Attacks 30 | . . . . . . . . 30 . Total Damage 1051 | . . . . . . . . 1051 . Kills 6 | . . . . . . . . 6 . Allies Corrupted . | . . . . . . . . . . Allies Melted . | . . . . . . . . . . Intel | -11 -10 -10 -9 -6 -5 -5 -5 -5 -4 ------- Run | Yrd Mat Sub Scr Fac Fac Upp Upp War Pro Active Infowar (turns) 5472 | 27 247 . . 1100 2346 715 1037 . . Sensors 5198 | . . . . 1100 2346 715 1037 . . Terrain 274 | 27 247 . . . . . . . . Robot Analysis Total 5 | . . . 5 . . . . . . Derelict Logs Recovered 4 | . . 1 . . . 1 2 . . Drone Launches . | . . . . . . . . . . Drone Recoveries . | . . . . . . . . . . Exploration | -11 -10 -10 -9 -6 -5 -5 -5 -5 -4 ------------- Run | Yrd Mat Sub Scr Fac Fac Upp Upp War Pro Turns Passed 14949 | 70 418 22 2394 1104 2385 715 1125 1468 5248 Spaces Moved 7094 | 46 164 19 2048 708 1600 566 730 951 262 Core 238 | 3 . . . . . . . . 235 Treads . | . . . . . . . . . . Legs . | . . . . . . . . . . Wheels 6856 | 43 164 19 2048 708 1600 566 730 951 27 Hover . | . . . . . . . . . . Flight . | . . . . . . . . . . Fastest Speed 50 | 50 80 80 80 85 85 110 130 130 50 Average Speed 185 | 96 98 80 113 95 110 122 133 138 1982 Slowest Speed 2450 | 100 100 80 155 160 175 130 175 175 2450 Overloaded Moves . | . . . . . . . . . . Propulsion Burnouts . | . . . . . . . . . . Robots Hopped . | . . . . . . . . . . Potential Cave-ins . | . . . . . . . . . . Cave-ins Triggered . | . . . . . . . . . . Exploration Rate (%) 46 | 3 31 2 94 14 40 70 79 95 39 Regions Visited 9 Branch Regions 6 Pre-discovered Areas 3 | . . . 1 . . . 2 . . Known Exits Taken 7 | . 1 1 1 1 1 1 1 . . Unknown Exits Taken 2 | 1 . . . . . . . 1 . Scrap Searched 12 | . . . 5 . . 4 2 . 1 Spaces Dug 8 | . . . . . 8 . . . . Terrain Destroyed 125 | . . . . 15 103 2 3 . 2 Melee . | . . . . . . . . . . Projectile 72 | . . . . 15 50 2 3 . 2 AOE 53 | . . . . . 53 . . . . Terrain Rammed . | . . . . . . . . . . Walls Destroyed . | . . . . . . . . . . Machines Disabled . | . . . . . . . . . . Actions | -11 -10 -10 -9 -6 -5 -5 -5 -5 -4 --------- Run | Yrd Mat Sub Scr Fac Fac Upp Upp War Pro Total 8343 | 60 325 25 2117 960 2045 580 851 1087 293 Wait 557 | . 90 7 11 83 220 1 86 59 . Move 7085 | 45 163 18 2047 707 1599 565 729 950 262 Hop . | . . . . . . . . . . Pick Up 113 | 4 8 . 21 29 35 2 2 12 . Fast Attach 77 | 7 3 . 5 12 39 1 2 8 . Attach 50 | . 2 . 5 19 6 . 4 3 11 Detach 2 | . . . 1 . 1 . . . . Swap 51 | . 4 . 4 12 20 5 1 4 1 Drop 139 | . 6 . 23 27 47 4 8 21 3 Fire 251 | 4 49 . . 70 78 2 19 13 16 Melee . | . . . . . . . . . . Ram 1 | . . . . 1 . . . . . Kick . | . . . . . . . . . . Crush . | . . . . . . . . . . Escape Stasis . | . . . . . . . . . . Rewire 17 | . . . . . . . . 17 . Trap . | . . . . . . . . . . Miscellaneous . | . . . . . . . . . . Route ------- -11/Scrapyard -10/Materials (discovered 3 exits: [*Mat] / [*Min] / *Sub) -10/Subcaves -9/Scraptown (discovered 2 exits: *Fac x2) -6/Factory -5/Factory (discovered 4 exits: *Fac x2 / *Upp x2) -5/Upper Caves -5/Upper Caves -5/Warlord -4/Proximity Caves History --------- Turn | Location | Event 34 | -11/Scrapyard | Discovered new exit (range 15) 71 | -11/Scrapyard | Entered Materials 81 | -10/Materials | Discovered new exit (range 14) 309 | -10/Materials | Build established: Mutant 311 | -10/Materials | Discovered new exit (range 10) 447 | -10/Materials | Discovered new exit (range 4) 488 | -10/Materials | Identified exit to Subcaves 489 | -10/Materials | Entered Subcaves 490 | -10/Subcaves | Approached by a straggling Scientist 493 | -10/Subcaves | Learned Materials terminal intel 500 | -10/Subcaves | Scientist uncovered a shortcut to Scraptown 510 | -10/Subcaves | Identified exit to Scraptown 511 | -10/Subcaves | Entered Scraptown 857 | -9/Scraptown | Discovered new exit (range 7) 895 | -9/Scraptown | Identified exit to Factory 951 | -9/Scraptown | Build established: Scavenger-Mutant 967 | -9/Scraptown | Visited Awakened 991 | -9/Scraptown | Visited Assassins FH 1288 | -9/Scraptown | Visited Fellowship of the Rings 1313 | -9/Scraptown | Visited CPS Storage 1422 | -9/Scraptown | Build established: Mutant 1454 | -9/Scraptown | Visited Cyclists 1507 | -9/Scraptown | Visited Symbiants 1566 | -9/Scraptown | Visited Shadow of the Wyrm 1609 | -9/Scraptown | Visited UFD Registry 1609 | -9/Scraptown | Registered with UFD as "Nulltorch" 1711 | -9/Scraptown | Entered Cyclist Reading Room 1837 | -9/Scraptown | Visited Chapter 10 1891 | -9/Scraptown | Visited Derelict Rescue Squad 1901 | -9/Scraptown | Found DRS Beacon 1933 | -9/Scraptown | Visited Observation Area 2280 | -9/Scraptown | Visited Analyses Database 2316 | -9/Scraptown | Visited Infowarlord's Domain 2327 | -9/Scraptown | Found Exp. Signal Interpreter 2383 | -9/Scraptown | Visited Scrap Suit Storage 2422 | -9/Scraptown | Visited Junk Repository 2561 | -9/Scraptown | Discovered exit to Factory (range 5) 2617 | -9/Scraptown | Visited LU-1G1's Boring Crew 2679 | -9/Scraptown | Visited Cartography Club 2820 | -9/Scraptown | Met Optimus 2820 | -9/Scraptown | Accepted into 0bPrime 2905 | -9/Scraptown | Entered Factory 2905 | -6/Factory | Evolved 8 slots: Power x1, Propulsion x1, Utility x4, Weapon x2 3205 | -6/Factory | Build established: Scavenger-Skirmisher 3308 | -6/Factory | Discovered new exit (range 11) 3316 | -6/Factory | Identified exit to Factory 3540 | -6/Factory | Destroyed 8 combat bots 3581 | -6/Factory | Garrison activated, responded to threat 3585 | -6/Factory | Cargo convoy interrupted 3630 | -6/Factory | Lost 3 parts (1n1u1w) 3724 | -6/Factory | Lost 4 parts (2n2w) 3867 | -6/Factory | Lost 3 parts (1p1n1u) 4009 | -6/Factory | Entered another Factory area 4009 | -5/Factory | Evolved 2 slots: Propulsion x1, Utility x1 4049 | -5/Factory | Garrison activated, responded to threat 4632 | -5/Factory | Destroyed 10 combat bots 4834 | -5/Factory | Fabricated Adv. Cloaking Device (x2) 4925 | -5/Factory | Discovered new exit (range 14) 5207 | -5/Factory | Discovered new exit (range 16) 5251 | -5/Factory | Identified exit to Factory 5477 | -5/Factory | Identified exit to Upper Caves 5754 | -5/Factory | Repaired Broken Hvy. Rocket Launcher 6394 | -5/Factory | Entered Upper Caves 6655 | -5/Upper Caves | Learned location of 2 exits from Factory 6922 | -5/Upper Caves | Build established: Skirmisher 7102 | -5/Upper Caves | Discovered new exit (range 4) 7106 | -5/Upper Caves | Identified exit to Upper Caves 7109 | -5/Upper Caves | Entered another Upper Caves area 7563 | -5/Upper Caves | Attracted the attention of an 0b10 checkpoint 7731 | -5/Upper Caves | Acquired the password to a Derelict Tinkerer's latest research 7740 | -5/Upper Caves | Found Prototype Special Weapon 7800 | -5/Upper Caves | Discovered new exit (range 8) 7808 | -5/Upper Caves | Identified exit to Warlord 8234 | -5/Upper Caves | Entered Warlord 8353 | -5/Warlord | Discovered new exit (range 8) 8411 | -5/Warlord | System corruption cleaned by Quarantine Array 8436 | -5/Warlord | Build established: Scavenger-Gunner 8546 | -5/Warlord | Identified Molecular Deconstructor 8550 | -5/Warlord | Found Prototype Energy Gun 8968 | -5/Warlord | Build established: Gunner 9099 | -5/Warlord | Warlord's base attacked by MAIN.C 9144 | -5/Warlord | Found Prototype Energy Gun 9144 | -5/Warlord | Identified Vortex Shotgun 9147 | -5/Warlord | Found Vortex Shotgun 9285 | -5/Warlord | Build established: Commander-Gunner 9444 | -5/Warlord | Rebuked by Warlord 9449 | -5/Warlord | Warlord forces counterattacked 9596 | -5/Warlord | Opened side exit 9619 | -5/Warlord | Core integrity fell below 50% 9630 | -5/Warlord | Spotted Striker 9650 | -5/Warlord | Destroyed Striker 9684 | -5/Warlord | Lost 7 allies 9697 | -5/Warlord | Destroyed 10 combat bots 9699 | -5/Warlord | Spotted Executioner 9699 | -5/Warlord | Spotted Executioner 9702 | -5/Warlord | Entered Proximity Caves 9702 | -4/Proximity Caves | Accompanied by 1 ally 9732 | -4/Proximity Caves | Lost 4 parts (1n1u2w) 9755 | -4/Proximity Caves | Spotted B-86 Titan 9775 | -4/Proximity Caves | Destroyed B-86 Titan 9996 | -4/Proximity Caves | Build established: Scavenger-Gunner 14905 | -4/Proximity Caves | Core integrity fell below 20% 14940 | -4/Proximity Caves | Released all parts (11) 14942 | -4/Proximity Caves | System corruption reached 10% 14950 | -4/Proximity Caves | Destroyed by P-70 Sage with High-powered Shock Rifle Last Messages --------------- payload. 14898_ P-70 Sage unfolds itself. 14901_ Variable Charge Gun+ destroyed. 14915_ System corrupted: Heat flow error (+136). 14916_ Imp. Particle Charger destroyed. 14917_ Fission Core destroyed. 14932_ Imp. Cooling System destroyed. 14937_ Destroyed Tesla Rifle. 14939_ Variable Charge Gun+ broken. 14939_ Overload: Short circuit. 14940_ Released Adv. Heat Sink. 14940_ Released Huge Storage Unit. 14940_ Released Weapon Cycler. 14940_ Released Rnf. Fission Core. 14940_ Released Weapon Mount. 14940_ Released Broken Variable Charge Gun+. 14940_ Released Neutrino Core. 14940_ Released Imp. Particle Charger. 14940_ Released Adv. Shield Generator. 14940_ Released Thermoblaster. Map ----- +----------------------------------------------------+ | ####### ##????# ##???????????????????????? | | ## #???## #???????????????????????? | | ##??# #???????????????????????? | | #??# #???????????????????????? | | ## ##?# ##??????????????????????? | | ## ### #??????????????????????? | | ?# ## #??????????????????????? | | ?# #### ##??????????????????????? | | ?# ## #### #???????????????????????? | | ?# ### #???????????????????????? | | ?# #?# #########???????????????? | | ?# ### ##### #???????????????? | | ?## ## #### #???????????????? | | ??# #?# ### #???????????????? | | ??# ####### #?#! #???????????????? | | #?## """" ###### ##?#*!#???????????????? | | #### """" ##??#!!#???????????????? | | # """" #???#!!#???????????????? | | # "" ######## #??*&!/#???????????????? | | # "" #??????# ## *!!*#???????????????? | | # """" #??????# ### ][]#???????????????? | | ## "" #??????# ### #??????????????? | | ### ###??????# !%! %! ?????????? | | #?## #????????# p## #?????????? | | ???# #????????# ### #?????????? | | ???## ???????# @#?### % #??????????? | | ????## ### ?????# ??? ???????????? | | ?????#####?# ???? ? ???????????? | | ???????????# ? ???# " ????????????? | | ??????????? ??#???# ## % ???????????? | | ??????????? ???????# ##?? ####???????????? | | ????? #???? ???????# #??? ##??????????????? | | # #????????????## ??? ##???????????????? | | #?????????????## ?????????????????????? | | #??????????????# ?????????????????????? | | ## ###??????????????# ?????????????????????? | | ???##???????????????? ##????????????????????? | | ????????????????????? #?????????????????????? | | ????????????????????? #??????????????????????? | | ?????????????????????#####???????????????????????? | | ?????????????????????????????????????????????????? | | ?????????????????????????????????????????????????? | | ?????????????????????????????????????????????????? | | ?????????????????????????????????????????????????? | | ?????????????????????????????????????????????????? | | ?????????????????????????????????????????????????? | | ?????????????????????????????????????????????????? | | ?????????????????????????????????????????????????? | | ?????????????????????????????????????????????????? | | ?????????????????????????????????????????????????? | +----------------------------------------------------+ Best States ------------- Heat Dissipation 90 Energy Generation 33 Energy Capacity 730 Matter Stores 300 Matter Capacity 300 Sight Range 16 Robot Scan Range 16 Terrain Scan Range 16 Terrain Scan Density 10 Base Temperature (-) 100 Armor Coverage 225 Resistance: KI 50 Resistance: TH 20 Resistance: EX 20 Resistance: EM 20 Resistance: I 20 Resistance: S 20 Resistance: P 20 Weapon Cycling 20 Evasion (%) 45 Targeting Accuracy 20 Target Analysis 6 Recoil Reduction 1 Energy Filtering 30 Particle Charging 20 Offensive Hacking 10 Item Schematics ----------------- None Robot Schematics ------------------ None Fabricated ------------ Adv. Cloaking Device | x2 | -5/Factory | Preloaded Repaired ---------- Hvy. Rocket Launcher | 10% | -5/Factory | Broken Studied --------- Wheel | -6/Factory | Hacked Spread Laser | -6/Factory | Hacked Gatling Laser | -6/Factory | Hacked Particle Cannon | -6/Factory | Hacked Hvy. Laser | -6/Factory | Hacked Variable Charge Gun | -5/Factory | Hacked Alien Tech Used ----------------- None Achievements -------------- None Challenges ------------ None Game ------ Seed CarbideAssemblyDriveblaster Manual? 0 Play Time 02:05:57 Cumulative 104.4 hours Start 2025.12.30 @ 07:59:06 End 2026.01.03 @ 20:26:24 Sessions 3 Manual Loads 0 Difficulty Adventurer Special Mode None Game No. 58 Rogue 29 Adventurer 29 Explorer 0 Win Type - Total 0 Types 0/0/0/0/0/0/0/0/0/0 Lore% 48 Gallery% 46 Achievement% 33 Wizard Run 0 Options --------- Layout 1 ASCII 0 Keyboard 0 Movement Mouse Keybinds 0 Fullscreen 2 Font 32/SmallcapsGlow Map View 50x35 Zoom Use 0% Tactical HUD 1 Map Filters NONE Filters NONE Steam 1 RUN: f0e015e4-8471-45a7-857b-2ec97d8d8242